bitfinex-derivatives/quotes_ETHF0:USTF0_20250125
["timestamp","ask_amount","ask_price","bid_price","bid_amount"]
[1737832077899,0.9478104,3341.3,3341.1,0.47894]
[1737832078206,0.43233903,3341.2,3341.1,0.47894]
[1737832078411,1.4304104,3341.2,3341.1,0.47894]
[1737832078606,1.4304104,3341.2,3341.0,1.55429935]
[1737832078795,0.9478104,3341.1,3341.0,1.55429935]
[1737832079002,0.9478104,3341.1,3340.9,3.2078]
[1737832079306,0.47898,3340.9,3340.6,0.47902]
[1737832079507,1.4267904,3340.9,3340.6,0.47902]
[1737832079709,1.4304104,3340.8,3340.6,0.47902]
[1737832079908,1.4442104,3340.7,3340.6,0.47902]
[1737832080513,1.4442104,3340.7,3340.6,1.55435935]
[1737832081618,1.01187137,3340.7,3340.6,1.55435935]
[1737832085219,0.51547137,3340.7,3340.6,1.55435935]
[1737832088216,1.00607137,3340.7,3340.6,1.55435935]
[1737832088813,1.00607137,3340.7,3340.4,4.76217935]
[1737832089116,0.51547137,3340.6,3340.4,4.76217935]
[1737832089714,0.51547137,3340.6,3340.4,4.28313935]
[1737832089915,0.51547137,3340.6,3340.5,0.47904]
[1737832091011,0.51547137,3340.6,3340.2,5.63845279]
[1737832091012,0.51547137,3340.6,3340.2,5.61592279]
[1737832091219,1.00244,3340.5,3340.2,5.13685279]
[1737832091522,0.51547137,3340.4,3340.2,5.61592279]
[1737832091724,1.03627137,3340.4,3340.2,5.61592279]
[1737832091922,0.51547137,3340.3,3340.2,5.61592279]
[1737832094926,0.51547137,3340.3,3340.2,6.69126214]
[1737832097130,3.2078,3341.2,3340.2,9.41999214]
[1737832097331,3.2078,3341.2,3340.9,0.47898]
[1737832097332,0.4765,3341.0,3340.9,0.47898]
[1737832098530,0.5061,3341.1,3341.0,0.47896]
[1737832098724,0.4765,3341.3,3341.2,0.47894]
[1737832098931,2.979,3341.6,3341.3,0.47892]
[1737832099126,0.9826,3341.9,3341.3,0.95362]
[1737832100931,1.46144,3341.9,3341.3,0.95362]
[1737832101331,0.9826,3341.9,3341.3,0.95362]
[1737832101531,0.47889,3341.6,3341.0,3.7262]
[1737832101833,0.47887,3341.7,3341.0,4.2465]
[1737832102233,0.515,3341.8,3341.3,0.47892]
[1737832103334,0.41746753,3341.7,3341.3,0.47892]
[1737832104531,0.41746753,3341.7,3341.0,4.2465]
[1737832104532,0.47888,3341.6,3341.2,0.47893]
[1737832104726,0.47894,3341.2,3341.0,3.2078]
[1737832104928,1.50455,3341.1,3341.0,3.2078]
[1737832105228,1.95336753,3341.1,3341.0,3.2078]
[1737832105632,0.41746753,3341.1,3341.0,3.68676]
[1737832105931,3.68669,3341.6,3341.0,3.2078]
[1737832105932,0.51828457,3341.4,3341.0,3.2078]
[1737832106233,0.51828457,3341.4,3341.2,0.47893]
[1737832106234,0.41746753,3341.3,3341.2,0.47893]
[1737832107732,0.94637546,3341.3,3341.2,0.47893]
[1737832108129,0.94637546,3341.3,3341.1,0.47894]
[1737832108336,0.41746753,3341.2,3341.0,3.2078]
[1737832108537,0.41746753,3341.2,3341.1,0.47894]
[1737832111333,0.52890793,3341.3,3341.1,0.47894]
[1737832111835,0.52890793,3341.3,3341.2,0.47894]
[1737832112939,0.00448457,3341.4,3341.3,0.47892]
[1737832114539,0.52218319,3341.9,3341.8,0.47885]
[1737832126349,0.94641776,3341.9,3341.8,0.47885]
[1737832127946,0.51370785,3341.9,3341.8,2.861658]
[1737832133754,3.2078,3342.0,3341.9,0.47883]
[1737832134160,3.2078,3342.0,3341.9,1.00093]
[1737832135256,0.00448457,3342.2,3342.1,0.47881]
[1737832135562,0.00448457,3342.2,3342.1,2.861618]
[1737832139362,0.00448457,3342.2,3342.1,3.09691345]
[1737832146067,0.00448457,3342.2,3342.1,6.30471345]
[1737832147667,0.00448457,3342.2,3342.1,4.99656478]
[1737832166581,1.01915902,3342.2,3342.1,4.99656478]
[1737832167079,1.54265902,3342.2,3342.1,4.99656478]
[1737832169674,1.97107202,3342.2,3342.1,4.76126933]
[1737832170883,1.54265902,3342.2,3342.1,4.76126933]
[1737832171179,1.54265902,3342.2,3342.1,4.28245933]
[1737832171378,1.54265902,3342.2,3342.1,4.76126933]
[1737832172080,1.54265902,3342.2,3342.1,1.55346933]
[1737832178079,1.97083006,3342.2,3342.1,1.55346933]
[1737832186591,1.54265902,3342.2,3342.1,1.55346933]
[1737832193786,1.97108369,3342.2,3342.1,1.55346933]
[1737832203493,1.54265902,3342.2,3342.1,1.55346933]
[1737832203897,0.50555902,3342.2,3342.1,1.55346933]
[1737832204196,3.2078,3342.7,3342.6,0.47873]
[1737832204410,0.42871081,3342.7,3342.6,1.55338933]
[1737832204597,0.42871081,3342.9,3342.8,0.47871]
[1737832205698,0.42871081,3342.9,3342.8,1.55336933]
[1737832206189,0.42871081,3342.9,3342.6,1.07465933]
[1737832207297,0.42871081,3342.9,3342.6,1.55338933]
[1737832209194,0.42871081,3342.9,3342.6,1.07465933]
[1737832209992,0.42871081,3342.9,3342.3,3.2078]
[1737832209993,0.42871081,3342.9,3342.4,1.07465933]
[1737832210200,1.50337014,3342.9,3342.4,0.47876]
[1737832210400,0.42871081,3342.8,3342.4,0.47875]
[1737832210999,0.42871081,3342.8,3342.5,0.47874]
[1737832211300,0.42871081,3342.9,3342.5,0.47874]
[1737832211706,0.42871081,3342.9,3342.6,0.47873]
[1737832212199,0.42871081,3342.9,3342.6,1.55338933]
[1737832212400,0.42871081,3342.9,3342.8,0.47871]
[1737832212601,7.57802947,3342.9,3341.5,3.21228457]
[1737832212808,3.2078,3342.0,3341.7,0.47886]
[1737832212999,1.91661081,3341.9,3341.5,3.69117457]
[1737832213302,0.42871081,3341.8,3341.5,3.21228457]
[1737832213798,0.42871081,3341.8,3341.6,1.07465933]
[1737832214006,0.91611101,3341.8,3341.6,1.07465933]
[1737832214199,0.42871081,3341.7,3341.6,1.07465933]
[1737832214406,0.42871081,3341.7,3341.5,0.00448457]
[1737832218701,0.42871081,3341.7,3341.6,1.07465933]
[1737832221107,0.4874002,3341.8,3341.6,1.07465933]
[1737832221314,0.4874002,3341.8,3341.7,0.47886]
[1737832222206,0.4874002,3341.8,3341.6,2.52495933]
[1737832222405,0.4874002,3341.8,3341.6,3.00383933]
[1737832223808,0.4874002,3341.8,3341.6,1.07465933]
[1737832224002,0.9641002,3341.8,3341.6,1.07465933]
[1737832225005,1.4429602,3341.8,3341.5,0.00448457]
[1737832225304,0.9662702,3341.7,3341.5,0.00448457]
[1737832225505,0.4874002,3341.6,3341.5,0.00448457]
[1737832225903,0.4874002,3341.7,3341.5,0.00448457]
[1737832226107,0.4874002,3341.6,3341.5,0.00448457]
[1737832226300,0.4874002,3341.7,3341.5,0.00448457]
[1737832232708,0.9662702,3341.7,3341.5,0.00448457]
[1737832232914,0.4874002,3341.6,3341.5,0.00448457]
[1737832233916,1.4429602,3341.8,3341.5,0.00448457]
[1737832234118,0.91398247,3341.7,3341.5,0.00448457]
[1737832234312,0.9662702,3341.7,3341.5,0.00448457]
[1737832234512,0.4874002,3341.6,3341.5,0.00448457]
[1737832235216,0.91415303,3341.6,3341.5,0.00448457]
[1737832236616,0.42675283,3341.6,3341.5,0.00448457]
[1737832238117,0.91415303,3341.6,3341.5,0.00448457]
[1737832238316,0.42675283,3341.6,3341.5,0.00448457]
[1737832239016,0.4874002,3341.7,3341.5,0.00448457]
[1737832239212,0.4874002,3341.6,3341.5,0.48337457]
[1737832239418,0.9759,3341.9,3341.7,0.47886]
[1737832239611,0.91390614,3341.8,3341.7,0.47886]
[1737832240012,0.91390614,3341.8,3341.5,0.48988457]
[1737832240213,0.42730146,3341.7,3341.5,0.48337457]
[1737832240421,1.39579865,3341.7,3341.5,0.00448457]
[1737832240619,0.48659719,3341.6,3341.5,0.00448457]
[1737832241421,0.48659719,3341.6,3341.5,0.48337457]
[1737832241622,0.91427161,3341.6,3341.5,0.48337457]
[1737832244921,0.91427161,3341.6,3341.5,0.00448457]
[1737832245517,0.91427161,3341.6,3341.5,0.48337457]
[1737832246017,0.91427161,3341.6,3341.5,0.00448457]
[1737832246423,0.91427161,3341.6,3341.5,0.48337457]
[1737832247230,0.91427161,3341.6,3341.5,0.00448457]
[1737832247625,0.91427161,3341.6,3341.5,1.07976962]
[1737832249125,0.91427161,3341.6,3341.5,1.55865962]
[1737832249544,0.91427161,3341.6,3341.5,1.07976962]
[1737832250638,0.91427161,3341.6,3341.5,1.55865962]
[1737832251739,0.31659719,3341.6,3341.5,1.55865962]
[1737832251931,3.10764176,3342.0,3341.9,0.47884]
[1737832252136,0.47874,3342.6,3341.9,0.47884]
[1737832252137,1.48,3342.6,3342.5,0.47875]
[1737832252434,1.48,3342.6,3342.5,1.27595608]
[1737832252632,1.48,3342.6,3342.5,1.07528505]
[1737832253644,1.48,3342.6,3342.4,0.47876]
[1737832257042,1.48,3342.6,3342.3,3.2078]
[1737832257444,1.48,3342.6,3342.5,0.47875]
[1737832258146,1.48,3342.6,3342.4,0.47876]
[1737832261044,1.95874,3342.6,3342.3,3.68657]
[1737832261247,1.48,3342.6,3342.3,3.68657]
[1737832261837,0.50060313,3342.5,3342.4,0.47876]
[1737832262144,0.91244815,3342.5,3342.4,0.47876]
[1737832263544,0.50060313,3342.5,3342.4,0.47876]
[1737832263747,0.50049469,3342.9,3342.8,0.47871]
[1737832263939,0.91225296,3342.9,3342.8,0.47871]
[1737832266237,0.00448457,3343.2,3342.8,0.47871]
[1737832266442,0.00448457,3343.2,3343.1,0.47866]
[1737832268442,0.49068457,3343.2,3343.1,0.47866]
[1737832268641,0.90192805,3343.2,3343.1,0.47866]
[1737832269341,0.49068457,3343.2,3343.1,0.47866]
[1737832272540,0.00448457,3343.2,3343.1,0.47866]
[1737832273150,0.00448457,3343.2,3343.1,3.68646]
[1737832281754,0.00448457,3343.2,3343.1,4.76045435]
[1737832295958,0.48842363,3343.5,3343.1,4.28179435]
[1737832296158,0.33577636,3343.7,3343.4,1.07399435]
[1737832296349,1.40942184,3344.3,3344.1,0.47851]
[1737832296556,0.41282184,3344.2,3344.1,3.68631]
[1737832296855,0.9966,3344.3,3344.2,0.47851]
[1737832297057,1.40940418,3344.3,3344.2,0.47851]
[1737832297958,0.9966,3344.3,3344.2,0.47851]
[1737832298152,0.9966,3344.3,3344.2,1.55250435]
[1737832298355,0.5075,3344.3,3344.2,1.55250435]
[1737832298560,0.5075,3344.3,3344.2,2.06640435]
[1737832299156,0.00448457,3344.6,3344.5,0.47846]
[1737832299356,0.00448457,3344.6,3344.5,4.76025435]
[1737832299560,0.48418457,3344.6,3344.5,4.76025435]
[1737832299948,0.5222,3345.2,3344.5,4.76025435]
[1737832300153,0.5222,3345.2,3345.1,1.55237435]
[1737832300154,1.0026,3345.2,3345.1,1.55237435]
[1737832300459,0.5222,3345.2,3345.1,2.6263687]
[1737832301163,0.4934,3345.7,3345.1,2.1479887]
[1737832301362,0.00448457,3345.5,3345.4,0.47833]
[1737832301659,0.00448457,3345.5,3345.4,3.68613]
[1737832301860,0.00448457,3345.5,3345.4,3.2078]
[1737832305760,0.41541764,3345.5,3345.4,3.2078]
[1737832306263,0.90097723,3345.5,3345.4,3.2078]
[1737832307265,0.49004416,3345.5,3345.4,3.2078]
[1737832308870,1.3788225,3345.5,3345.4,3.2078]
[1737832309973,0.9005025,3345.5,3344.7,2.3767174]
[1737832310168,0.9005025,3345.5,3344.4,3.2078]
[1737832310169,3.2078,3345.1,3344.4,5.5845174]
[1737832310366,1.41441793,3345.0,3344.4,5.5845174]
[1737832310672,0.47845,3344.7,3344.4,5.5845174]
[1737832311063,1.37446793,3344.7,3344.4,5.5845174]
[1737832311263,0.89601793,3344.6,3344.4,5.5845174]
[1737832311469,0.48555959,3344.6,3344.4,5.5845174]
[1737832312471,3.4892,3344.9,3344.4,5.5845174]
[1737832312472,0.48555959,3344.5,3344.4,5.5845174]
[1737832313161,0.47844,3344.7,3344.4,5.5845174]
[1737832313364,0.4823,3344.6,3344.4,5.5845174]
[1737832315267,0.4823,3344.6,3344.4,3.2078]
[1737832315472,0.47846,3344.5,3344.4,3.2078]
[1737832315671,0.4785,3344.3,3343.9,3.21228457]
[1737832315867,0.973,3344.2,3343.9,3.21228457]
[1737832316274,0.5144,3344.1,3343.9,3.21228457]
[1737832317277,0.5144,3344.1,3343.9,3.69082457]
[1737832317472,0.5144,3344.1,3343.9,3.21228457]
[1737832317777,0.5144,3344.1,3344.0,0.47853]
[1737832320579,0.4867,3344.2,3344.1,0.47852]
[1737832320778,0.4867,3344.2,3344.1,2.8552374]
[1737832325877,0.4954,3344.5,3344.1,2.8552374]
[1737832325878,0.4954,3344.5,3344.4,0.47848]
[1737832326077,0.98233964,3344.5,3344.4,0.47848]
[1737832331286,0.98233964,3344.5,3344.3,0.47848]
[1737832331485,0.48693964,3344.4,3344.1,2.3767174]
[1737832332185,0.48693964,3344.4,3344.3,0.47849]
[1737832337798,0.48693964,3344.4,3344.3,1.55185187]
[1737832342907,0.48693964,3344.4,3344.3,1.07336187]
[1737832343402,0.90040767,3344.4,3344.3,1.07336187]
[1737832344600,0.90040767,3344.4,3344.3,1.59586187]
[1737832346606,0.90040767,3344.4,3344.3,0.5225]
[1737832346800,0.90040767,3344.4,3344.3,1.59586187]
[1737832350603,0.90040767,3344.4,3344.3,2.07435187]
[1737832351109,0.48693964,3344.4,3344.3,2.07435187]
[1737832352212,0.48693964,3344.4,3344.3,1.59586187]
[1737832352408,0.48693964,3344.6,3344.3,1.59586187]
[1737832352711,2.979,3344.7,3344.6,0.47845]
[1737832352912,3.88371794,3344.7,3344.6,0.47845]
[1737832353905,3.88364969,3344.7,3344.6,0.47845]
[1737832354106,3.4702295,3344.7,3344.6,0.47845]
[1737832355809,0.9045457,3344.7,3344.6,0.47845]
[1737832356505,0.4912295,3344.7,3344.6,0.47845]
[1737832358406,0.90449881,3344.7,3344.6,0.47845]
[1737832362509,0.61433064,3344.7,3344.6,0.99405]
[1737832362713,1.0137,3345.3,3344.6,0.5156]
[1737832362915,3.2078,3345.4,3345.2,1.07336187]
[1737832363114,0.41308604,3345.3,3345.2,1.43328852]
[1737832363814,0.41308604,3345.3,3345.2,0.47836]
[1737832370116,0.41308604,3345.3,3345.1,1.07336187]
[1737832370520,0.89144604,3345.3,3345.1,1.07336187]
[1737832371426,0.47836,3345.2,3345.1,1.07336187]
[1737832372819,1.35914714,3345.2,3345.1,1.07336187]
[1737832374224,0.88078714,3345.2,3344.9,4.28116187]
[1737832374525,1.83476714,3345.1,3344.9,4.28116187]
[1737832374727,0.88078714,3345.0,3344.9,4.28116187]
[1737832374926,1.37408714,3345.0,3344.9,4.28116187]
[1737832375716,1.85247714,3345.0,3344.9,4.28116187]
[1737832376122,1.85247714,3345.0,3344.9,3.2078]
[1737832376321,0.47841,3344.9,3344.7,1.07336187]
[1737832376517,1.85409714,3344.9,3344.7,1.07336187]
[1737832376828,0.88078714,3344.8,3344.7,1.07336187]
[1737832377324,0.47844,3344.7,3344.5,1.07336187]
[1737832377520,0.4898,3344.6,3344.5,1.07336187]
[1737832377827,1.86358714,3344.6,3344.5,1.07336187]
[1737832380016,2.34203714,3344.6,3344.5,1.07336187]
[1737832381333,2.34203714,3344.6,3344.3,1.07336187]
[1737832381629,0.4677011,3344.5,3344.3,1.07336187]
[1737832381825,0.488,3344.4,3344.3,1.07336187]
[1737832382022,0.9557011,3344.4,3344.3,1.07336187]
[1737832382228,0.488,3344.4,3344.3,1.07336187]
[1737832382431,0.9557011,3344.4,3344.3,1.07336187]
[1737832382729,0.488,3344.4,3344.3,1.07336187]
[1737832382928,0.9557011,3344.4,3344.3,1.07336187]
[1737832384035,0.488,3344.4,3344.3,1.07336187]
[1737832384234,0.9557011,3344.4,3344.3,1.07336187]
[1737832384437,0.488,3344.4,3344.3,1.07336187]
[1737832384632,0.9557011,3344.4,3344.3,1.07336187]
[1737832385038,0.96648,3344.4,3344.3,1.07336187]
[1737832385235,0.4785,3344.3,3344.1,1.07336187]
[1737832385435,0.9462011,3344.3,3344.1,1.07336187]
[1737832385639,0.4806,3344.2,3344.1,1.07336187]
[1737832385836,0.9483011,3344.2,3344.1,1.07336187]
[1737832387436,0.95911,3344.2,3344.1,1.07336187]
[1737832387631,1.4268111,3344.2,3344.1,1.07336187]
[1737832390838,0.9483011,3344.2,3344.1,1.07336187]
[1737832391032,0.4806,3344.2,3344.1,1.07336187]
[1737832391226,0.9483011,3344.2,3344.1,1.07336187]
[1737832391832,0.4806,3344.2,3344.1,1.07336187]
[1737832392031,0.9483011,3344.2,3344.1,1.07336187]
[1737832392242,0.4806,3344.2,3344.1,1.07336187]
[1737832392634,0.9483011,3344.2,3344.1,1.07336187]
[1737832392834,0.4806,3344.2,3344.1,1.07336187]
[1737832393335,0.9483011,3344.2,3344.1,1.07336187]
[1737832393636,0.4806,3344.2,3344.1,1.07336187]
[1737832393834,0.9483011,3344.2,3344.1,1.07336187]
[1737832394038,0.4806,3344.2,3344.1,1.07336187]
[1737832394545,0.9483011,3344.2,3344.1,1.07336187]
[1737832395734,1.4268111,3344.2,3344.1,1.07336187]
[1737832395932,1.4268111,3344.2,3343.9,1.07784644]
[1737832396135,0.9648011,3344.1,3343.9,1.07784644]
[1737832396334,0.4677011,3344.0,3343.9,1.55639644]
[1737832399141,0.4677011,3344.0,3343.9,0.00448457]
[1737832399446,5.63969577,3344.0,3343.9,0.00448457]
[1737832401043,5.63969577,3344.0,3343.9,0.00192724]
[1737832401243,4.5663339,3344.0,3343.9,0.00192724]
[1737832403243,7.5453339,3344.0,3343.9,0.00192724]
[1737832405851,4.3375339,3344.0,3343.9,0.00192724]
[1737832406052,7.5453339,3344.0,3343.9,0.00192724]
[1737832416453,8.61869577,3344.0,3343.9,0.00192724]
[1737832419157,8.61869577,3344.0,3343.9,0.00082833]
[1737832420966,5.63969577,3344.0,3343.9,0.00082833]
[1737832421860,4.5663339,3344.0,3343.9,0.47937833]
[1737832422059,4.5663339,3344.0,3343.9,0.00082833]
[1737832422260,4.5663339,3344.0,3343.9,0.47937833]
[1737832422462,4.5663339,3344.0,3343.9,0.00082833]
[1737832427067,7.5453339,3344.0,3343.9,0.00082833]
[1737832429177,7.0668039,3344.0,3343.8,0.20620232]
[1737832429375,0.47855,3343.9,3343.8,0.20620232]
[1737832429573,0.8908528,3343.9,3343.8,0.20620232]
[1737832429768,1.3585539,3343.9,3343.8,0.20620232]
[1737832430370,1.3585539,3343.9,3343.8,0.68476232]
[1737832431069,1.3585539,3343.9,3343.8,0.20620232]
[1737832438185,4.5663539,3343.9,3343.8,0.20620232]
[1737832439184,4.0878039,3343.9,3343.6,0.48285771]
[1737832439379,1.4025039,3343.8,3343.6,0.48285771]
[1737832439588,0.8800039,3343.7,3343.6,0.48285771]
[1737832440380,1.3585839,3343.7,3343.6,0.48285771]
[1737832445976,0.8800039,3343.7,3343.6,0.48285771]
[1737832446181,0.8800039,3343.7,3343.6,0.96144771]
[1737832446781,0.8800039,3343.7,3343.6,0.48285771]
[1737832446985,0.41903154,3343.8,3343.7,0.47858]
[1737832447293,0.92546453,3343.8,3343.7,1.55194187]
[1737832448486,0.92546453,3343.8,3343.7,1.07336187]
[1737832448792,0.92546453,3343.8,3343.5,1.07784644]
[1737832448994,1.4124115,3343.7,3343.5,1.07784644]
[1737832449185,1.4124115,3343.7,3343.5,0.42897953]
[1737832449186,0.92546453,3343.6,3343.5,0.42897953]
[1737832449390,0.92546453,3343.6,3343.4,2.99477187]
[1737832449596,0.4190315,3343.5,3343.4,2.99477187]
[1737832449893,0.47864,3343.3,3343.0,1.55203187]
[1737832450088,0.47864,3343.3,3343.0,1.59126187]
[1737832450288,0.4912,3343.2,3343.0,1.59126187]
[1737832450494,0.92546453,3343.1,3343.0,1.59126187]
[1737832452190,4.61194453,3343.1,3342.8,1.57034644]
[1737832452396,0.47869,3342.9,3342.8,1.07784644]
[1737832452591,1.40415453,3342.9,3342.8,1.07784644]
[1737832452786,2.9575164,3342.9,3342.8,0.00448457]
[1737832459604,5.9365164,3342.9,3342.8,0.00448457]
[1737832465601,2.9575164,3342.9,3342.8,0.00448457]
[1737832468397,6.1653164,3342.9,3342.8,0.00448457]
[1737832471106,6.1653164,3342.9,3342.8,0.00186214]
[1737832472105,5.6866264,3342.9,3342.0,1.07336187]
[1737832472308,3.2078,3342.4,3342.0,1.07336187]
[1737832472606,3.2078,3342.4,3342.3,0.47878]
[1737832472805,4.17472933,3342.4,3342.3,0.47878]
[1737832473010,4.59738844,3342.4,3342.3,0.47878]
[1737832475503,4.12018844,3342.4,3342.3,0.47878]
[1737832475996,3.69752933,3342.4,3342.3,0.98278]
[1737832476799,0.48972933,3342.4,3342.3,0.98278]
[1737832477005,4.75986187,3342.9,3342.6,0.47873]
[1737832477210,0.91352866,3342.8,3342.7,0.9977]
[1737832477509,0.91352866,3342.8,3342.7,1.95962]
[1737832477510,3.89252866,3342.8,3342.7,1.95962]
[1737832480408,0.91352866,3342.8,3342.7,1.95962]
[1737832483205,1.39223866,3342.8,3342.7,0.75708991]
[1737832483515,0.91352866,3342.8,3342.7,0.75708991]
[1737832488319,0.91352866,3342.8,3342.5,1.0096]
[1737832488613,0.47878,3342.3,3342.1,3.6866]
[1737832488820,0.47878,3342.3,3342.1,4.1675]
[1737832489311,0.47878,3342.3,3342.1,3.6887]
[1737832489520,0.91352866,3342.3,3342.1,4.1675]
[1737832489818,3.63098523,3342.2,3342.1,0.4809]
[1737832490118,4.12132866,3342.2,3342.1,0.95971]
[1737832491518,4.12132866,3342.2,3342.1,0.4809]
[1737832492211,4.62822866,3342.2,3342.1,0.4809]
[1737832492817,4.62822866,3342.2,3342.0,2.56626644]
[1737832493017,0.91352866,3342.1,3342.0,2.56626644]
[1737832494021,0.91352866,3342.1,3342.0,1.07784644]
[1737832494922,0.91352866,3342.1,3342.0,1.55666644]
[1737832495823,0.49034343,3342.1,3342.0,1.55666644]
[1737832500722,0.42734107,3342.1,3342.0,1.55666644]
[1737832500929,3.2078,3342.2,3342.1,0.47881]
[1737832501120,3.2078,3342.2,3342.1,1.48731]
[1737832502231,2.979,3342.6,3342.1,4.2163]
[1737832502532,0.42401502,3342.5,3342.4,0.47876]
[1737832502824,3.2078,3343.1,3342.2,0.5233]
[1737832503028,0.42399252,3343.0,3342.9,0.47869]
[1737832503229,0.42399252,3343.1,3343.0,0.47868]
[1737832503425,0.5234,3343.4,3343.2,0.47865]
[1737832503426,0.42399252,3343.3,3343.2,0.47865]
[1737832503825,0.42399252,3343.3,3343.2,1.55201187]
[1737832505326,0.42399252,3343.4,3343.3,0.47863]
[1737832505727,0.42847709,3343.5,3343.4,0.47862]
[1737832506124,0.42847709,3343.5,3343.2,2.37980529]
[1737832506337,0.42847709,3343.5,3343.1,0.47866]
[1737832506632,0.42847709,3343.5,3342.2,4.14895]
[1737832506633,0.47866,3343.2,3342.6,2.37980529]
[1737832506839,0.9882,3343.1,3342.8,3.6865]
[1737832507134,0.42399252,3343.0,3342.8,3.6865]
[1737832507334,0.4968,3342.9,3342.8,3.6865]
[1737832508835,0.4968,3342.9,3342.4,3.2078]
[1737832509034,0.9755,3342.9,3342.5,0.47875]
[1737832509231,0.4232765,3342.8,3342.5,0.47875]
[1737832511030,0.91077067,3342.8,3342.5,0.47875]
[1737832511228,0.4232765,3342.7,3342.4,3.2078]
[1737832511536,0.9020065,3342.7,3342.4,3.2078]
[1737832511837,0.48749417,3342.6,3342.4,3.2078]
[1737832512049,0.91416289,3342.5,3342.4,3.2078]
[1737832512240,1.90662508,3342.5,3342.4,3.2078]
[1737832513942,1.90662508,3342.5,3342.4,3.68656]
[1737832514140,1.48329417,3342.5,3342.4,3.68656]
[1737832514940,0.48749417,3342.5,3342.4,3.68656]
[1737832515133,0.48746337,3342.8,3342.6,0.47873]
[1737832515332,0.91075873,3342.7,3342.6,0.47873]
[1737832515740,0.42329535,3342.7,3342.6,0.47873]
[1737832515944,0.42331736,3342.7,3342.6,0.47873]
[1737832516142,0.42331736,3342.7,3342.5,0.47874]
[1737832516440,0.42331736,3342.7,3342.4,3.7234]
[1737832516643,0.42331736,3342.7,3342.5,0.47874]
[1737832519136,0.42331736,3342.7,3342.4,0.5156]
[1737832519336,0.42331736,3342.7,3342.4,0.99436]
[1737832519549,0.91078074,3342.7,3342.4,0.99436]
[1737832519751,0.48746338,3342.7,3342.6,0.47873]
[1737832520247,0.48744935,3342.8,3342.7,0.47872]
[1737832520449,0.91074088,3342.8,3342.7,0.47872]
[1737832520648,0.48744714,3342.8,3342.6,0.4983]
[1737832520852,0.48744714,3342.8,3342.6,0.47872]
[1737832521251,0.48744714,3342.8,3342.7,0.47872]
[1737832521549,0.91076955,3342.8,3342.6,0.47873]
[1737832521847,0.48744714,3342.8,3342.6,0.47873]
[1737832522243,0.9020024,3342.7,3342.3,2.85857529]
[1737832522443,0.96618714,3342.6,3342.3,2.85857529]
[1737832522645,0.48744714,3342.6,3342.1,3.2078]
[1737832522845,0.47879,3342.2,3342.1,3.2078]
[1737832523146,0.47878,3342.3,3342.1,3.2078]
[1737832523447,0.9734,3342.2,3342.1,3.2078]
[1737832523644,1.93963714,3342.2,3342.1,3.2078]
[1737832526253,1.93963714,3342.2,3342.0,0.00448457]
[1737832526553,0.48744714,3342.1,3342.0,0.00448457]
[1737832527244,0.96625714,3342.1,3342.0,0.00448457]
[1737832535858,9.35683744,3342.1,3341.0,0.25762009]
[1737832536156,0.47897,3341.0,3340.8,0.5126]
[1737832536348,0.91061686,3341.3,3340.8,0.5126]
[1737832536656,0.47897,3341.0,3340.8,0.5126]
[1737832536951,0.48744714,3341.1,3340.7,3.2078]
[1737832537146,0.47899,3340.9,3340.7,3.2078]
[1737832537348,0.479,3340.8,3340.6,0.9531]
[1737832537547,0.96644714,3340.8,3340.6,0.9531]
[1737832537852,0.48681355,3340.7,3340.6,0.9531]
[1737832538053,0.48681355,3340.7,3340.6,0.4793]
[1737832538251,0.96580355,3340.9,3340.6,0.4793]
[1737832538553,0.47902,3340.7,3340.5,2.37980529]
[1737832539251,0.47902,3340.6,3340.5,2.37980529]
[1737832539448,0.47902,3340.7,3340.5,2.37980529]
[1737832540455,0.47902,3340.6,3340.5,2.37980529]
[1737832540953,0.48626954,3340.8,3340.5,2.37980529]
[1737832541144,0.47901,3340.7,3340.5,2.37980529]
[1737832541542,0.48626954,3340.8,3340.5,2.37980529]
[1737832541845,0.47902,3340.7,3340.5,2.37980529]
[1737832543057,0.4881,3340.9,3340.5,2.37980529]
[1737832543268,0.47902,3340.6,3340.5,2.37980529]
[1737832543755,0.96708,3340.9,3340.5,2.37980529]
[1737832544761,0.47899,3340.8,3340.5,2.37980529]
[1737832547860,0.96709,3340.9,3340.5,2.37980529]
[1737832548055,0.47899,3340.8,3340.5,2.37980529]
[1737832548256,0.47899,3340.8,3340.5,2.62198312]
[1737832548859,0.4881,3340.9,3340.5,2.62198312]
[1737832549060,0.96709,3340.9,3340.5,2.62198312]
[1737832550961,0.4881,3340.9,3340.5,2.62198312]
[1737832551160,0.4881,3340.9,3340.4,0.4738]
[1737832551161,0.47904,3340.5,3340.4,0.4738]
[1737832551348,1.0294,3340.8,3340.2,5.58760529]
[1737832551661,1.0294,3340.8,3339.9,2.37980529]
[1737832551662,0.47909,3340.2,3339.9,2.37980529]
[1737832551863,0.47911,3340.0,3339.9,2.37980529]
[1737832552153,0.47913,3339.9,3339.7,3.2078]
[1737832552358,0.47914,3339.8,3339.7,3.2078]
[1737832552560,0.5127,3339.9,3339.7,3.2078]
[1737832552758,0.99183,3339.9,3339.7,3.2078]
[1737832553159,0.5127,3339.9,3339.7,3.2078]
[1737832553559,0.99183,3339.9,3339.7,3.2078]
[1737832554261,0.47914,3339.8,3339.7,3.2078]
[1737832554458,0.99183,3339.9,3339.7,3.2078]
[1737832554661,0.47914,3339.8,3339.7,3.2078]
[1737832554862,0.99183,3339.9,3339.7,3.2078]
[1737832557567,0.99182,3339.9,3339.7,3.2078]
[1737832559168,0.47914,3339.8,3339.7,3.2078]
[1737832559571,0.5127,3339.9,3339.3,5.83070984]
[1737832559767,1.0119,3339.7,3339.3,2.37980529]
[1737832560067,0.47917,3339.6,3339.3,2.37980529]
[1737832560270,0.4792,3339.4,3339.1,1.4428]
[1737832560469,4.2197,3339.7,3339.1,1.4428]
[1737832560669,0.47917,3339.6,3339.1,1.92203]
[1737832561771,4.2197,3339.7,3339.1,1.4428]
[1737832561974,0.47917,3339.6,3339.1,1.92203]
[1737832562271,0.96418204,3339.6,3339.1,1.92203]
[1737832562467,0.48501204,3339.6,3339.1,1.4428]
[1737832562676,0.5127,3339.9,3339.1,1.4428]
[1737832562677,0.5127,3339.9,3339.4,0.47918]
[1737832562874,6.6875,3340.1,3339.6,5.58760529]
[1737832563171,0.48506425,3340.0,3339.7,0.47914]
[1737832563372,0.48506425,3340.0,3339.7,1.4569]
[1737832564174,0.48506425,3340.0,3339.7,1.93605]
[1737832566380,0.48506425,3340.0,3339.7,1.4569]
[1737832566682,0.48506425,3340.0,3339.7,1.93604]